fUST/lending_fUST_20250602
["ID","MTS","AMOUNT","RATE_DAILY","PERIOD"]
[363765996,1748866239503,-430.0,0.00016862,2]
[363765997,1748866239513,-430.0,0.00016862,2]
[363765998,1748866239523,-430.0,0.00016862,2]
[363765999,1748866239533,-420.0,0.00016862,2]
[363766000,1748866239543,-430.0,0.00016862,2]
[363766001,1748866239554,-530.0,0.00016862,2]
[363766002,1748866239563,-430.0,0.00016862,2]
[363766003,1748866239574,-430.0,0.00016862,2]
[363766004,1748866239584,-430.0,0.00016862,2]
[363766005,1748866239594,-313.94167833,0.00016862,2]
[363766006,1748866239603,-430.0,0.00016862,2]
[363766007,1748866239613,-430.0,0.00016862,2]
[363766008,1748866239623,-430.0,0.00016862,2]
[363766009,1748866239633,-430.0,0.00016862,2]
[363766011,1748866239643,-430.0,0.00016862,2]
[363766013,1748866239653,-430.0,0.00016862,2]
[363766015,1748866239662,-430.0,0.00016862,2]
[363766017,1748866239671,-430.0,0.00016862,2]
[363766019,1748866239681,-430.0,0.00016862,2]
[363766021,1748866239691,-430.0,0.00016862,2]
[363766023,1748866239700,-430.0,0.00016862,2]
[363766025,1748866239709,-430.0,0.00016862,2]
[363766027,1748866239719,-431.30627603,0.00016863,2]
[363766029,1748866239728,-3654.9,0.00017,2]
[363766031,1748866239738,-151.0,0.00017,2]
[363766033,1748866239747,-1523.1485482,0.00017035,2]
[363766035,1748866239757,-500.0,0.00017087,2]
[363766037,1748866239767,-4748.0952418,0.0001711,2]
[363766039,1748866239777,-430.0,0.00017131,2]
[363766041,1748866239786,-430.0,0.00017131,2]
[363766043,1748866239796,-1320.38,0.00017131,2]
[363766045,1748866239807,-430.0,0.00017131,2]
[363766047,1748866239817,-471.17,0.00017131,2]
[363766049,1748866239827,-3118.67,0.00017131,2]
[363766051,1748866239836,-430.0,0.00017132,2]
[363766053,1748866239846,-430.0,0.00017132,2]
[363766055,1748866239855,-430.0,0.00017132,2]
[363766057,1748866239864,-430.0,0.00017132,2]
[363766058,1748866239874,-430.0,0.00017132,2]
[363766060,1748866239884,-443.5571818,0.00017132,2]
[363766062,1748866239894,-430.0,0.00017132,2]
[363766064,1748866239905,-430.0,0.00017132,2]
[363766067,1748866239915,-490.0,0.00017132,2]
[363766069,1748866239924,-430.0,0.00017132,2]
[363766071,1748866239934,-430.0,0.00017132,2]
[363766072,1748866239944,-562.58357322,0.00017132,2]
[363766075,1748866239954,-570.0,0.00017132,2]
[363766076,1748866239964,-430.0,0.00017132,2]
[363766079,1748866239974,-445.2196465,0.00017132,2]
[363766080,1748866239983,-430.0,0.00017132,2]
[363766082,1748866239993,-430.0,0.00017132,2]
[363766084,1748866240002,-4901.09,0.00017132,2]
[363766086,1748866240012,-430.0,0.00017132,2]
[363766089,1748866240022,-541.49316756,0.00017132,2]
[363766091,1748866240032,-430.0,0.00017132,2]
[363766093,1748866240044,-430.0,0.00017132,2]
[363766095,1748866240056,-430.0,0.00017132,2]
[363766097,1748866240066,-430.0,0.00017132,2]
[363766099,1748866240075,-430.0,0.00017132,2]
[363766101,1748866240086,-4129.7,0.00017132,2]
[363766103,1748866240095,-430.0,0.00017132,2]
[363766105,1748866240105,-2242.45,0.00017132,2]
[363766107,1748866240114,-2191.02,0.00017132,2]
[363766109,1748866240125,-430.0,0.00017132,2]
[363766111,1748866240134,-430.0,0.00017132,2]
[363766113,1748866240144,-430.0,0.00017132,2]
[363766115,1748866240154,-430.0,0.00017132,2]
[363766117,1748866240164,-785.05,0.00017132,2]
[363766119,1748866240175,-430.0,0.00017132,2]
[363766121,1748866240186,-430.0,0.00017132,2]
[363766123,1748866240196,-430.0,0.00017132,2]
[363766125,1748866240206,-430.0,0.00017132,2]
[363766127,1748866240216,-430.0,0.00017132,2]
[363766129,1748866240226,-619.3,0.00017132,2]
[363766131,1748866240238,-430.0,0.00017132,2]
[363766133,1748866240250,-1156.79,0.00017132,2]
[363766135,1748866240261,-430.0,0.00017132,2]
[363766137,1748866240270,-430.0,0.00017132,2]
[363766139,1748866240280,-430.0,0.00017132,2]
[363766141,1748866240290,-430.0,0.00017132,2]
[363766144,1748866240302,-430.0,0.00017132,2]
[363766155,1748866240397,-430.0,0.00017132,2]
[363766157,1748866240407,-736.37,0.00017132,2]
[363766159,1748866240416,-488.16965099,0.00017132,2]
[363766161,1748866240426,-1180.67,0.00017132,2]
[363766163,1748866240435,-430.0,0.00017132,2]
[363766165,1748866240444,-430.0,0.00017132,2]
[363766167,1748866240453,-430.0,0.00017132,2]
[363766169,1748866240463,-430.0,0.00017132,2]
[363766171,1748866240473,-3770.39,0.00017132,2]
[363766173,1748866240482,-430.0,0.00017132,2]
[363766175,1748866240492,-430.0,0.00017132,2]
[363766177,1748866240503,-430.0,0.00017132,2]
[363766179,1748866240516,-430.0,0.00017132,2]
[363766181,1748866240527,-430.0,0.00017132,2]
[363766183,1748866240537,-430.0,0.00017132,2]
[363766185,1748866240547,-712.54,0.00017132,2]
[363766187,1748866240558,-430.0,0.00017132,2]
[363766189,1748866240567,-461.65,0.00017132,2]
[363766191,1748866240576,-430.0,0.00017132,2]
[363766193,1748866240586,-430.0,0.00017132,2]
[363766195,1748866240595,-513.8,0.00017132,2]
[363766197,1748866240605,-1174.27,0.00017132,2]
[363766199,1748866240615,-430.0,0.00017132,2]
[363766201,1748866240625,-430.0,0.00017132,2]
[363766203,1748866240635,-430.0,0.00017132,2]
[363766205,1748866240644,-430.0,0.00017132,2]
[363766207,1748866240654,-2890.69,0.00017132,2]
[363766209,1748866240663,-430.0,0.00017132,2]
[363766211,1748866240672,-430.0,0.00017133,2]
[363766213,1748866240682,-430.0,0.00017133,2]
[363766215,1748866240691,-430.0,0.00017133,2]
[363766216,1748866240701,-430.0,0.00017133,2]
[363766218,1748866240711,-430.0,0.00017133,2]
[363766220,1748866240721,-430.0,0.00017133,2]
[363766222,1748866240730,-430.0,0.00017133,2]
[363766224,1748866240739,-432.00431272,0.00017133,2]
[363766226,1748866240748,-430.0,0.00017133,2]
[363766228,1748866240757,-430.0,0.00017133,2]
[363766230,1748866240766,-470.0,0.00017133,2]
[363766232,1748866240774,-430.0,0.00017133,2]
[363766234,1748866240782,-430.0,0.00017133,2]
[363766236,1748866240791,-430.0,0.00017133,2]
[363766238,1748866240802,-430.0,0.00017133,2]
[363766240,1748866240813,-430.0,0.00017133,2]
[363766242,1748866240823,-212.02972206,0.00017133,2]
[363766244,1748866240833,-430.0,0.00017133,2]
[363766246,1748866240843,-430.0,0.00017133,2]
[363766248,1748866240853,-430.0,0.00017133,2]
[363766250,1748866240862,-430.0,0.00017133,2]
[363766252,1748866240872,-430.0,0.00017133,2]
[363766254,1748866240882,-430.0,0.00017133,2]
[363766256,1748866240894,-430.0,0.00017133,2]
[363766258,1748866240909,-430.0,0.00017133,2]
[363766260,1748866240917,-430.0,0.00017133,2]
[363766262,1748866240926,-162.16195882,0.00017133,2]
[363766264,1748866240935,-949.56,0.00017133,2]
[363766266,1748866240944,-430.0,0.00017133,2]
[363766268,1748866240954,-430.0,0.00017133,2]
[363766270,1748866240963,-430.0,0.00017133,2]
[363766272,1748866240972,-430.0,0.00017133,2]
[363766274,1748866240980,-1065.04,0.00017133,2]
[363766276,1748866240987,-430.0,0.00017133,2]
[363766278,1748866240995,-7394.04,0.00017133,2]
[363766280,1748866241003,-402.68366557,0.00017133,2]
[363766282,1748866241011,-363.24,0.00017133,2]
[363766284,1748866241019,-430.0,0.00017133,2]
[363766286,1748866241028,-430.0,0.00017133,2]
[363766288,1748866241038,-1541.52,0.00017133,2]
[363766290,1748866241052,-1130.52,0.00017133,2]
[363766292,1748866241061,-430.0,0.00017133,2]
[363766294,1748866241071,-430.0,0.00017133,2]
[363766296,1748866241081,-430.0,0.00017133,2]
[363766298,1748866241092,-430.0,0.00017133,2]
[363766300,1748866241102,-430.0,0.00017133,2]
[363766302,1748866241111,-867.55,0.00017133,2]
[363766304,1748866241121,-4395.71,0.00017133,2]
[363766306,1748866241131,-430.0,0.00017133,2]
[363766308,1748866241141,-430.0,0.00017133,2]
[363766310,1748866241151,-1146.56,0.00017133,2]
[363766312,1748866241161,-430.0,0.00017133,2]
[363766314,1748866241171,-430.0,0.00017133,2]
[363766316,1748866241180,-439.19,0.00017133,2]
[363766318,1748866241189,-430.0,0.00017133,2]
[363766320,1748866241199,-430.0,0.00017133,2]
[363766322,1748866241208,-430.0,0.00017134,2]
[363766324,1748866241218,-430.0,0.00017134,2]
[363766326,1748866241228,-430.0,0.00017134,2]
[363766328,1748866241237,-430.0,0.00017134,2]
[363766330,1748866241246,-430.0,0.00017134,2]
[363766332,1748866241256,-430.0,0.00017134,2]
[363766334,1748866241265,-452.32,0.00017134,2]
[363766336,1748866241275,-430.0,0.00017134,2]
[363766338,1748866241284,-430.0,0.00017134,2]
[363766340,1748866241294,-430.0,0.00017134,2]
[363766342,1748866241305,-430.0,0.00017134,2]
[363766344,1748866241315,-430.0,0.00017134,2]
[363766346,1748866241324,-470.0,0.00017134,2]
[363766348,1748866241334,-430.0,0.00017134,2]
[363766350,1748866241344,-430.0,0.00017136,2]
[363766352,1748866241353,-430.0,0.00017136,2]
[363766354,1748866241363,-430.0,0.00017136,2]
[363766356,1748866241374,-430.0,0.00017136,2]
[363766358,1748866241384,-430.0,0.00017136,2]
[363766360,1748866241394,-430.0,0.00017136,2]
[363766363,1748866241404,-430.0,0.00017136,2]
[363766365,1748866241414,-430.0,0.00017136,2]
[363766367,1748866241424,-430.0,0.00017136,2]
[363766369,1748866241433,-500.0,0.0001714,2]
[363766371,1748866241443,-500.0,0.0001714,2]
[363766373,1748866241454,-500.0,0.0001714,2]
[363766375,1748866241464,-500.0,0.0001714,2]
[363766377,1748866241474,-500.0,0.0001714,2]
[363766379,1748866241486,-500.0,0.00017142,2]
[363766381,1748866241496,-510.48768727,0.00017142,2]
[363766384,1748866241516,-500.0,0.00017142,2]
[363766386,1748866241527,-500.0,0.00017142,2]
[363766388,1748866241537,-500.0,0.00017142,2]
[363766390,1748866241547,-510.5117327,0.00017142,2]
[363766392,1748866241558,-503.93213778,0.00017142,2]
[363766394,1748866241569,-500.0,0.00017147,2]
[363766397,1748866241579,-500.0,0.00017147,2]
[363766398,1748866241589,-500.72993794,0.00017148,2]
[363766401,1748866241599,-500.0,0.00017153,2]
[363766403,1748866241609,-623.88696206,0.00017153,2]
[363766405,1748866241619,-500.0,0.00017153,2]
[363766407,1748866241629,-501.02187263,0.00017153,2]
[363766409,1748866241638,-210.3381001,0.00017164,2]
[363766411,1748866241648,-500.0,0.00017164,2]
[363766412,1748866241658,-7034.1933839,0.000172,2]
[363766415,1748866241668,-7034.19338387,0.000172,2]
[363766417,1748866241677,-500.0,0.00017255,2]
[363766419,1748866241689,-500.0,0.00017255,2]
[363766421,1748866241698,-500.0,0.00017255,2]
[363766423,1748866241707,-500.27378623,0.00017255,2]
[363766425,1748866241716,-500.0,0.00017255,2]
[363766427,1748866241726,-7034.19338387,0.00017383,2]
[363766429,1748866241735,-151.0,0.000174,2]
[363766431,1748866241745,-430.0,0.00017405,2]
[363766433,1748866241755,-430.0,0.00017405,2]
[363766435,1748866241765,-1320.38,0.00017405,2]
[363766437,1748866241775,-430.0,0.00017405,2]
[363766439,1748866241785,-471.17,0.00017405,2]
[363766441,1748866241794,-3118.67,0.00017405,2]
[363766443,1748866241804,-476.5160786,0.00017406,2]
[363766445,1748866241814,-430.0,0.00017406,2]
[363766447,1748866241824,-428.32268884,0.00017406,2]
[363766449,1748866241833,-173.65366645,0.00017406,2]
[363766451,1748866241843,-430.0,0.00017406,2]
[363766453,1748866241853,-430.0,0.00017406,2]
[363766455,1748866241863,-430.0,0.00017406,2]
[363766457,1748866241873,-430.0,0.00017406,2]
[363766459,1748866241882,-430.0,0.00017406,2]
[363766461,1748866241893,-266.75713331,0.00017406,2]
[363766463,1748866241903,-430.0,0.00017406,2]
[363766465,1748866241913,-4901.09,0.00017406,2]
[363766467,1748866241923,-430.0,0.00017406,2]
[363766469,1748866241932,-430.0,0.00017406,2]
[363766471,1748866241942,-430.0,0.00017406,2]
[363766473,1748866241952,-430.0,0.00017406,2]
[363766475,1748866241961,-4129.7,0.00017406,2]
[363766477,1748866241972,-430.0,0.00017406,2]
[363766479,1748866241981,-2242.45,0.00017406,2]
[363766481,1748866241991,-2191.02,0.00017406,2]
[363766483,1748866242000,-430.0,0.00017406,2]
[363766485,1748866242010,-430.0,0.00017406,2]
[363766487,1748866242020,-430.0,0.00017406,2]
[363766489,1748866242030,-430.0,0.00017406,2]
[363766491,1748866242039,-785.05,0.00017406,2]
[363766493,1748866242052,-430.0,0.00017406,2]
[363766495,1748866242062,-430.0,0.00017406,2]
[363766497,1748866242072,-430.0,0.00017406,2]
[363766499,1748866242082,-619.3,0.00017406,2]
[363766501,1748866242093,-430.0,0.00017406,2]
[363766503,1748866242103,-1156.79,0.00017406,2]
[363766514,1748866242197,-430.0,0.00017406,2]
[363766516,1748866242208,-296.33,0.00017406,2]
[363766518,1748866242218,-430.0,0.00017406,2]
[363766520,1748866242228,-430.0,0.00017406,2]
[363766522,1748866242238,-736.37,0.00017406,2]
[363766524,1748866242247,-1180.67,0.00017406,2]
[363766526,1748866242257,-430.0,0.00017406,2]
[363766528,1748866242267,-430.0,0.00017406,2]
[363766530,1748866242277,-430.0,0.00017406,2]
[363766532,1748866242286,-3770.39,0.00017406,2]
[363766534,1748866242296,-430.0,0.00017406,2]
[363766536,1748866242307,-430.0,0.00017406,2]
[363766538,1748866242317,-430.0,0.00017406,2]
[363766540,1748866242326,-430.0,0.00017406,2]
[363766542,1748866242337,-430.0,0.00017406,2]
[363766544,1748866242347,-712.54,0.00017406,2]
[363766546,1748866242357,-430.0,0.00017406,2]
[363766548,1748866242366,-461.65,0.00017406,2]
[363766550,1748866242376,-430.0,0.00017406,2]
[363766552,1748866242385,-430.0,0.00017406,2]
[363766554,1748866242396,-513.8,0.00017406,2]
[363766556,1748866242406,-1174.27,0.00017406,2]
[363766558,1748866242415,-430.0,0.00017406,2]
[363766561,1748866242425,-430.0,0.00017406,2]
[363766563,1748866242435,-546.13,0.00017406,2]
[363766565,1748866242445,-2890.69,0.00017406,2]
[363766567,1748866242454,-430.0,0.00017406,2]
[363766568,1748866242464,-442.01997378,0.00017407,2]
[363766570,1748866242473,-430.0,0.00017407,2]
[363766572,1748866242483,-430.0,0.00017407,2]
[363766574,1748866242493,-430.0,0.00017407,2]
[363766577,1748866242503,-430.0,0.00017407,2]
[363766579,1748866242513,-430.0,0.00017407,2]
[363766581,1748866242522,-490.0,0.00017407,2]
[363766583,1748866242532,-490.0,0.00017407,2]
[363766585,1748866242542,-430.0,0.00017407,2]
[363766587,1748866242552,-430.0,0.00017407,2]
[363766589,1748866242562,-430.0,0.00017407,2]
[363766591,1748866242572,-430.0,0.00017407,2]
[363766593,1748866242582,-430.0,0.00017407,2]
[363766595,1748866242592,-430.0,0.00017407,2]
[363766597,1748866242603,-466.93770404,0.00017407,2]
[363766599,1748866242612,-949.56,0.00017407,2]
[363766601,1748866242622,-430.0,0.00017407,2]
[363766603,1748866242631,-430.0,0.00017407,2]
[363766605,1748866242641,-430.0,0.00017407,2]
[363766607,1748866242651,-430.0,0.00017407,2]
[363766609,1748866242660,-1065.04,0.00017407,2]
[363766610,1748866242670,-430.0,0.00017407,2]
[363766613,1748866242681,-7394.04,0.00017407,2]
[363766615,1748866242691,-430.0,0.00017407,2]
[363766616,1748866242701,-1541.52,0.00017407,2]
[363766619,1748866242712,-1130.52,0.00017407,2]
[363766621,1748866242722,-430.0,0.00017407,2]
[363766622,1748866242732,-430.0,0.00017407,2]
[363766625,1748866242742,-430.0,0.00017407,2]
[363766627,1748866242752,-430.0,0.00017407,2]
[363766629,1748866242761,-867.55,0.00017407,2]
[363766631,1748866242771,-4395.71,0.00017407,2]
[363766633,1748866242780,-430.0,0.00017407,2]
[363766635,1748866242790,-430.0,0.00017407,2]
[363766637,1748866242799,-1146.56,0.00017407,2]
[363766639,1748866242809,-430.0,0.00017407,2]
[363766641,1748866242819,-430.0,0.00017407,2]
[363766643,1748866242828,-439.19,0.00017407,2]
[363766645,1748866242838,-430.0,0.00017407,2]
[363766647,1748866242847,-430.0,0.00017407,2]
[363766649,1748866242857,-430.0,0.00017408,2]
[363766651,1748866242866,-430.0,0.00017408,2]
[363766653,1748866242875,-430.0,0.00017408,2]
[363766655,1748866242884,-430.0,0.00017408,2]
[363766656,1748866242893,-390.0,0.00017408,2]
[363766659,1748866242903,-430.0,0.00017408,2]
[363766661,1748866242913,-452.32,0.00017408,2]
[363766662,1748866242922,-450.0,0.00017408,2]
[363766664,1748866242932,-430.0,0.00017408,2]
[363766666,1748866242941,-430.0,0.00017408,2]
[363766668,1748866242951,-430.0,0.00017408,2]
[363766671,1748866242961,-430.0,0.00017408,2]
[363766673,1748866242970,-430.0,0.0001741,2]
[363766675,1748866242980,-430.0,0.0001741,2]
[363766678,1748866242990,-430.0,0.0001741,2]
[363766681,1748866242999,-490.0,0.0001741,2]
[363766683,1748866243010,-500.0,0.00017483,2]
[363766685,1748866243020,-500.0,0.00017483,2]
[363766687,1748866243029,-500.0,0.00017483,2]
[363766689,1748866243039,-501.15123222,0.00017483,2]
[363766691,1748866243053,-183.48147604,0.00017536,2]
[363766693,1748866243062,-1523.1485482,0.00017582,2]
[363766695,1748866243072,-7034.19338387,0.00017624,2]
[363766697,1748866243083,-1000.0,0.00017635,2]
[363766699,1748866243094,-430.0,0.00017679,2]
[363766700,1748866243104,-430.0,0.00017679,2]
[363766701,1748866243114,-1320.38,0.00017679,2]
[363766702,1748866243123,-430.0,0.00017679,2]
[363766703,1748866243134,-471.17,0.00017679,2]
[363766704,1748866243147,-3118.67,0.00017679,2]
[363766705,1748866243156,-430.0,0.0001768,2]
[363766706,1748866243167,-430.0,0.0001768,2]
[363766707,1748866243177,-430.0,0.0001768,2]
[363766708,1748866243187,-4901.09,0.0001768,2]
[363766709,1748866243197,-430.0,0.0001768,2]
[363766710,1748866243206,-430.0,0.0001768,2]
[363766711,1748866243217,-430.0,0.0001768,2]
[363766712,1748866243226,-4129.7,0.0001768,2]
[363766713,1748866243236,-430.0,0.0001768,2]
[363766714,1748866243246,-2242.45,0.0001768,2]
[363766716,1748866243255,-2191.02,0.0001768,2]
[363766717,1748866243265,-430.0,0.0001768,2]
[363766719,1748866243274,-430.0,0.0001768,2]
[363766721,1748866243284,-430.0,0.0001768,2]
[363766723,1748866243293,-430.0,0.0001768,2]
[363766725,1748866243303,-785.05,0.0001768,2]
[363766727,1748866243312,-430.0,0.0001768,2]
[363766729,1748866243321,-430.0,0.0001768,2]
[363766731,1748866243330,-430.0,0.0001768,2]
[363766733,1748866243342,-619.3,0.0001768,2]
[363766735,1748866243352,-430.0,0.0001768,2]
[363766737,1748866243362,-1156.79,0.0001768,2]
[363766739,1748866243372,-430.0,0.0001768,2]
[363766741,1748866243381,-430.0,0.0001768,2]
[363766743,1748866243391,-430.0,0.0001768,2]
[363766745,1748866243400,-736.37,0.0001768,2]
[363766747,1748866243410,-1180.67,0.0001768,2]
[363766749,1748866243420,-430.0,0.0001768,2]
[363766751,1748866243429,-430.0,0.0001768,2]
[363766753,1748866243439,-430.0,0.0001768,2]
[363766755,1748866243449,-3770.39,0.0001768,2]
[363766757,1748866243458,-430.0,0.0001768,2]
[363766759,1748866243468,-320.5111075,0.0001768,2]
[363766761,1748866243477,-430.0,0.0001768,2]
[363766763,1748866243487,-430.0,0.0001768,2]
[363766765,1748866243497,-430.0,0.0001768,2]
[363766767,1748866243507,-712.54,0.0001768,2]
[363766769,1748866243516,-430.0,0.0001768,2]
[363766771,1748866243526,-461.65,0.0001768,2]
[363766773,1748866243535,-430.0,0.0001768,2]
[363766775,1748866243545,-430.0,0.0001768,2]
[363766777,1748866243555,-513.8,0.0001768,2]
[363766779,1748866243565,-1174.27,0.0001768,2]
[363766781,1748866243575,-430.0,0.0001768,2]
[363766783,1748866243584,-430.0,0.0001768,2]
[363766785,1748866243594,-2890.69,0.0001768,2]
[363766787,1748866243604,-430.0,0.0001768,2]
[363766789,1748866243614,-430.0,0.00017681,2]
[363766791,1748866243623,-430.0,0.00017681,2]
[363766793,1748866243633,-430.0,0.00017681,2]
[363766795,1748866243643,-430.0,0.00017681,2]
[363766797,1748866243654,-430.0,0.00017681,2]
[363766799,1748866243663,-218.57,0.00017681,2]
[363766801,1748866243673,-430.0,0.00017681,2]
[363766804,1748866243683,-430.0,0.00017681,2]
[363766807,1748866243692,-949.56,0.00017681,2]
[363766811,1748866243702,-430.0,0.00017681,2]
[363766814,1748866243714,-430.0,0.00017681,2]
[363766817,1748866243723,-430.0,0.00017681,2]
[363766819,1748866243733,-430.0,0.00017681,2]
[363766823,1748866243743,-1065.04,0.00017681,2]
[363766826,1748866243753,-430.0,0.00017681,2]
[363766829,1748866243763,-7394.04,0.00017681,2]
[363766831,1748866243773,-1541.52,0.00017681,2]
[363766843,1748866243863,-1130.52,0.00017681,2]
[363766845,1748866243873,-430.0,0.00017681,2]
[363766847,1748866243883,-430.0,0.00017681,2]
[363766849,1748866243894,-150.93453295,0.00017681,2]
[363766852,1748866243904,-867.55,0.00017681,2]
[363766853,1748866243913,-4395.71,0.00017681,2]
[363766855,1748866243923,-430.0,0.00017681,2]
[363766858,1748866243933,-1146.56,0.00017681,2]
[363766860,1748866243943,-430.0,0.00017681,2]
[363766862,1748866243952,-430.0,0.00017681,2]
[363766864,1748866243962,-439.19,0.00017681,2]
[363766866,1748866243972,-430.0,0.00017681,2]
[363766868,1748866243982,-430.0,0.00017682,2]
[363766870,1748866243991,-430.0,0.00017682,2]
[363766872,1748866244001,-430.0,0.00017682,2]
[363766874,1748866244011,-430.0,0.00017682,2]
[363766876,1748866244021,-430.0,0.00017682,2]
[363766878,1748866244030,-452.32,0.00017682,2]
[363766880,1748866244039,-490.0,0.00017682,2]
[363766882,1748866244054,-430.0,0.00017682,2]
[363766884,1748866244063,-430.0,0.00017682,2]
[363766886,1748866244073,-430.0,0.00017682,2]
[363766888,1748866244083,-1000.0,0.00017688,2]
[363766889,1748866244093,-1000.0,0.00017688,2]
[363766892,1748866244103,-803.0592369,0.00017688,2]
[363766894,1748866244113,-504.49898345,0.0001769,2]
[363766896,1748866244123,-500.0,0.0001769,2]
[363766898,1748866244134,-1000.0,0.0001769,2]
[363766900,1748866244144,-1000.0,0.00017701,2]
[363766902,1748866244154,-1000.0,0.00017701,2]
[363766904,1748866244164,-1000.0,0.00017712,2]
[363766906,1748866244174,-151.0,0.000178,2]
[363766908,1748866244183,-540.69116155,0.000178,2]
[363766910,1748866244194,-500.0,0.000178,2]
[363766912,1748866244204,-471.86017094,0.00017802,2]
[363766914,1748866244214,-1000.0,0.00017802,2]
[363766916,1748866244224,-1000.0,0.00017802,2]
[363766918,1748866244234,-151.0,0.00017861,2]
[363766920,1748866244243,-7034.19338387,0.00017866,2]
[363766922,1748866244253,-500.0,0.00017887,2]
[363766924,1748866244262,-500.0,0.00017887,2]
[363766926,1748866244271,-500.0,0.00017887,2]
[363766928,1748866244281,-500.0,0.00017887,2]
[363766930,1748866244291,-500.0,0.00017887,2]
[363766932,1748866244300,-500.0,0.00017887,2]
[363766934,1748866244311,-500.0,0.00017887,2]
[363766936,1748866244323,-151.0,0.00017887,2]
[363766938,1748866244332,-500.0,0.00017887,2]
[363766940,1748866244341,-151.0,0.00017887,2]
[363766942,1748866244351,-500.0,0.00017887,2]
[363766944,1748866244360,-500.0,0.00017887,2]
[363766946,1748866244370,-151.0,0.00017887,2]
[363766948,1748866244379,-234.26443732,0.00017887,2]
[363766950,1748866244389,-500.0,0.00017887,2]
[363766952,1748866244398,-160.0,0.00017896,2]
[363766954,1748866244407,-314.91466509,0.00017896,2]
[363766956,1748866244417,-160.0,0.00017896,2]
[363766958,1748866244427,-212.83419937,0.00017896,2]
[363766960,1748866244437,-160.0,0.00017896,2]
[363766962,1748866244447,-160.0,0.00017896,2]
[363766964,1748866244456,-229.39799938,0.00017896,2]
[363766966,1748866244465,-160.0,0.00017896,2]
[363766968,1748866244474,-12668.79298183,0.00017896,2]
[363766970,1748866244484,-423.56953423,0.00017896,2]
[363766972,1748866244493,-160.0,0.00017896,2]
[363766974,1748866244503,-842.5625,0.00017896,2]
[363766976,1748866244512,-500.0,0.00017914,2]
[363766978,1748866244522,-500.0,0.00017914,2]
[363766980,1748866244532,-500.0,0.00017914,2]
[363766982,1748866244542,-500.0,0.00017914,2]
[363766984,1748866244553,-500.0,0.00017914,2]
[363766986,1748866244562,-500.0,0.00017914,2]
[363766988,1748866244572,-500.0,0.00017914,2]
[363766990,1748866244581,-151.0,0.00017914,2]
[363766992,1748866244592,-540.56203915,0.00017914,2]
[363766994,1748866244602,-151.0,0.00017914,2]
[363766996,1748866244611,-500.0,0.00017914,2]
[363766998,1748866244620,-500.0,0.00017914,2]
[363767000,1748866244630,-151.0,0.00017914,2]
[363767002,1748866244640,-500.0,0.00017914,2]
[363767004,1748866244650,-2400.0,0.00017937,2]
[363767006,1748866244659,-500.0,0.00017942,2]
[363767008,1748866244669,-500.0,0.00017942,2]
[363767010,1748866244679,-500.0,0.00017942,2]